fUSD/lending_fUSD_20240222
["ID","MTS","AMOUNT","RATE_DAILY","PERIOD"]
[314867740,1708601446137,-4879.3,0.00032876,2]
[314867741,1708601446146,-2253.17,0.00032876,2]
[314867742,1708601446155,-2092.36,0.00032876,2]
[314867743,1708601446164,-2031.66,0.00032876,2]
[314867744,1708601446174,-500.0,0.00032876,2]
[314867745,1708601446184,-549.29,0.00032876,2]
[314867746,1708601446193,-412.59212032,0.00032876,2]
[314867747,1708601446203,-500.0,0.00032876,2]
[314867748,1708601446212,-871.57,0.00032876,2]
[314867749,1708601446221,-500.0,0.00032876,2]
[314867750,1708601446230,-500.0,0.00032876,2]
[314867751,1708601446240,-1205.91,0.00032876,2]
[314867752,1708601446249,-500.0,0.00032876,2]
[314867753,1708601446259,-500.0,0.00032876,2]
[314867754,1708601446268,-500.0,0.00032876,2]
[314867755,1708601446278,-500.0,0.00032876,2]
[314867756,1708601446287,-1067.46,0.00032876,2]
[314867757,1708601446297,-500.0,0.00032876,2]
[314867758,1708601446306,-2873.05,0.00032876,2]
[314867759,1708601446315,-500.0,0.00032876,2]
[314867760,1708601446324,-500.0,0.00032876,2]
[314867761,1708601446334,-500.0,0.00032876,2]
[314867762,1708601446344,-500.0,0.00032876,2]
[314867763,1708601446353,-566.48,0.00032876,2]
[314867764,1708601446362,-883.96,0.00032876,2]
[314867765,1708601446371,-500.0,0.00032876,2]
[314867766,1708601446380,-10165.77,0.00032876,2]
[314867767,1708601446389,-1002.82,0.00032876,2]
[314867768,1708601446398,-500.0,0.00032876,2]
[314867769,1708601446407,-830.7,0.00032876,2]
[314867770,1708601446416,-4634.29,0.00032876,2]
[314867771,1708601446426,-673.67,0.00032876,2]
[314867773,1708601446435,-500.0,0.00032876,2]
[314867774,1708601446444,-500.0,0.00032876,2]
[314867775,1708601446453,-1394.53,0.00032876,2]
[314867776,1708601446462,-500.0,0.00032876,2]
[314867777,1708601446471,-500.0,0.00032876,2]
[314867778,1708601446481,-500.0,0.00032876,2]
[314867779,1708601446489,-500.0,0.00032876,2]
[314867780,1708601446498,-800.5,0.00032876,2]
[314867781,1708601446508,-810.43,0.00032876,2]
[314867782,1708601446517,-3927.9,0.00032876,2]
[314867783,1708601446527,-902.64,0.00032876,2]
[314867784,1708601446537,-629.49,0.00032876,2]
[314867785,1708601446549,-696.8,0.00032876,2]
[314867786,1708601446559,-500.0,0.00032876,2]
[314867787,1708601446569,-500.0,0.00032876,2]
[314867788,1708601446578,-500.0,0.00032876,2]
[314867789,1708601446588,-680.74,0.00032876,2]
[314867790,1708601446598,-4022.49,0.00032876,2]
[314867791,1708601446607,-500.0,0.00032876,2]
[314867792,1708601446617,-703.41,0.00032876,2]
[314867793,1708601446628,-1998.84,0.00032876,2]
[314867794,1708601446638,-3355.5,0.00032876,2]
[314867795,1708601446648,-500.0,0.00032876,2]
[314867796,1708601446657,-500.0,0.00032876,2]
[314867797,1708601446666,-500.0,0.00032876,2]
[314867798,1708601446675,-737.32,0.00032876,2]
[314867799,1708601446684,-1275.5,0.00032876,2]
[314867800,1708601446693,-500.0,0.00032876,2]
[314867801,1708601446702,-500.0,0.00032876,2]
[314867802,1708601446711,-1070.27,0.00032876,2]
[314867803,1708601446721,-844.73,0.00032876,2]
[314867804,1708601446731,-500.0,0.00032876,2]
[314867805,1708601446741,-199.7555413,0.00032876,2]
[314867806,1708601446751,-1561.5,0.00032876,2]
[314867807,1708601446761,-31232.22,0.00032876,2]
[314867808,1708601446771,-500.0,0.00032876,2]
[314867809,1708601446781,-557.82,0.00032876,2]
[314867810,1708601446791,-500.0,0.00032876,2]
[314867811,1708601446800,-160.15457358,0.00032876,2]
[314867812,1708601446809,-500.0,0.00032876,2]
[314867813,1708601446819,-839.73,0.00032876,2]
[314867814,1708601446828,-500.0,0.00032876,2]
[314867815,1708601446838,-10474.23,0.00032876,2]
[314867816,1708601446847,-937.57,0.00032876,2]
[314867817,1708601446857,-500.0,0.00032876,2]
[314867818,1708601446867,-1195.62,0.00032876,2]
[314867819,1708601446876,-1777.64,0.00032876,2]
[314867820,1708601446886,-582.67,0.00032876,2]
[314867821,1708601446895,-500.0,0.00032876,2]
[314867822,1708601446905,-1313.01,0.00032876,2]
[314867823,1708601446915,-500.0,0.00032876,2]
[314867824,1708601446925,-500.0,0.00032876,2]
[314867825,1708601446934,-750.9,0.00032876,2]
[314867826,1708601446944,-500.0,0.00032876,2]
[314867827,1708601446953,-500.0,0.00032876,2]
[314867828,1708601446962,-500.34186509,0.00032876,2]
[314867829,1708601446972,-665.82,0.00032876,2]
[314867830,1708601446981,-500.0,0.00032876,2]
[314867831,1708601446992,-780.34,0.00032876,2]
[314867832,1708601447001,-500.0,0.00032876,2]
[314867833,1708601447011,-10116.56,0.00032876,2]
[314867834,1708601447021,-9800.69,0.00032876,2]
[314867835,1708601447030,-500.0,0.00032876,2]
[314867836,1708601447040,-500.0,0.00032876,2]
[314867837,1708601447049,-500.0,0.00032876,2]
[314867838,1708601447058,-500.0,0.00032876,2]
[314867839,1708601447068,-646.49,0.00032876,2]
[314867840,1708601447077,-500.0,0.00032876,2]
[314867841,1708601447087,-1726.47,0.00032876,2]
[314867842,1708601447097,-601.55,0.00032876,2]
[314867843,1708601447106,-500.0,0.00032876,2]
[314867844,1708601447116,-6697.21,0.00032876,2]
[314867845,1708601447126,-688.94,0.00032876,2]
[314867846,1708601447135,-1102.78,0.00032876,2]
[314867847,1708601447144,-1024.88,0.00032876,2]
[314867848,1708601447154,-500.0,0.00032876,2]
[314867849,1708601447163,-309.78554613,0.00032876,2]
[314867850,1708601447172,-1607.55,0.00032876,2]
[314867851,1708601447181,-7082.46,0.00032876,2]
[314867852,1708601447191,-500.0,0.00032876,2]
[314867853,1708601447200,-566.25,0.00032876,2]
[314867854,1708601447209,-1110.04,0.00032876,2]
[314867855,1708601447219,-500.0,0.00032876,2]
[314867856,1708601447228,-500.0,0.00032876,2]
[314867857,1708601447238,-169.11385031,0.00032876,2]
[314867858,1708601447257,-428.87614969,0.00032876,2]
[314867859,1708601447267,-500.0,0.00032876,2]
[314867860,1708601447277,-3170.67,0.00032876,2]
[314867861,1708601447286,-500.0,0.00032876,2]
[314867862,1708601447295,-631.65832571,0.00032876,2]
[314867863,1708601447316,-206.19167429,0.00032876,2]
[314867864,1708601447325,-92.11832571,0.00032876,2]
[314867865,1708601447362,-949.41167429,0.00032876,2]
[314867866,1708601447371,-500.0,0.00032876,2]
[314867867,1708601447380,-1414.03657776,0.00032876,2]
[314867868,1708601447413,-44.80342224,0.00032876,2]
[314867869,1708601447422,-738.65134727,0.00032876,2]
[314867870,1708601448673,-763.75865273,0.00032876,2]
[314867871,1708601448683,-500.0,0.00032876,2]
[314867872,1708601448693,-688.74,0.00032876,2]
[314867873,1708601448702,-595.75,0.00032876,2]
[314867874,1708601448712,-1849.04,0.00032876,2]
[314867875,1708601448721,-501.00139738,0.00032876,2]
[314867876,1708601448731,-1232.82,0.00032876,2]
[314867877,1708601448740,-500.0,0.00032876,2]
[314867878,1708601448750,-597.46,0.00032876,2]
[314867879,1708601448760,-6206.5,0.00032876,2]
[314867880,1708601448769,-500.0,0.00032876,2]
[314867881,1708601448779,-500.0,0.00032876,2]
[314867882,1708601448789,-1232.67,0.00032876,2]
[314867883,1708601448799,-495.07182445,0.00032876,2]
[314867884,1708601448809,-891.4,0.00032876,2]
[314867885,1708601448821,-95.88296094,0.00032876,2]
[314867886,1708601449356,-1730.67703906,0.00032876,2]
[314867887,1708601449367,-504.97251538,0.00032876,2]
[314867888,1708601449378,-500.0,0.00032876,2]
[314867889,1708601449387,-500.0,0.00032876,2]
[314867890,1708601449397,-500.0,0.00032876,2]
[314867891,1708601449407,-543.55,0.00032876,2]
[314867892,1708601449417,-1695.92869416,0.00032876,2]
[314867893,1708601449431,-5410.95130584,0.00032876,2]
[314867894,1708601449440,-86.7193579,0.00032876,2]
[314867895,1708601449459,-413.2806421,0.00032876,2]
[314867896,1708601449469,-500.0,0.00032876,2]
[314867897,1708601449479,-1266.61,0.00032876,2]
[314867898,1708601449488,-596.54,0.00032876,2]
[314867899,1708601449498,-576.81,0.00032876,2]
[314867900,1708601449508,-603.75,0.00032876,2]
[314867901,1708601449518,-2192.66,0.00032876,2]
[314867902,1708601449528,-500.0,0.00032876,2]
[314867903,1708601449539,-500.0,0.00032876,2]
[314867904,1708601449553,-739.09,0.00032876,2]
[314867905,1708601449563,-500.0,0.00032876,2]
[314867906,1708601449572,-500.0,0.00032876,2]
[314867907,1708601449583,-500.0,0.00032876,2]
[314867908,1708601449593,-2744.04,0.00032876,2]
[314867909,1708601449602,-500.0,0.00032876,2]
[314867910,1708601449612,-890.54444339,0.00032876,7]
[314867911,1708601449625,-1318.4,0.00032876,2]
[314867912,1708601449635,-500.0,0.00032876,2]
[314867913,1708601449646,-500.0,0.00032876,2]
[314867914,1708601449655,-500.0,0.00032876,2]
[314867915,1708601449665,-527.45,0.00032876,2]
[314867916,1708601449674,-500.0,0.00032876,2]
[314867917,1708601449683,-1052.67,0.00032876,2]
[314867918,1708601449693,-2934.31,0.00032876,2]
[314867919,1708601449702,-500.0,0.00032876,2]
[314867920,1708601449711,-500.0,0.00032876,2]
[314867921,1708601449721,-780.84,0.00032876,2]
[314867922,1708601449730,-627.02,0.00032876,2]
[314867923,1708601449740,-500.0,0.00032876,2]
[314867924,1708601449750,-1378.92,0.00032876,2]
[314867925,1708601449759,-500.0,0.00032876,2]
[314867926,1708601449769,-983.47,0.00032876,2]
[314867927,1708601449778,-500.0,0.00032876,2]
[314867928,1708601449787,-1899.58,0.00032876,2]
[314867929,1708601449797,-1069.68,0.00032876,2]
[314867930,1708601449807,-756.21,0.00032876,2]
[314867931,1708601449816,-1155.81,0.00032876,2]
[314867932,1708601449825,-3361.66,0.00032876,2]
[314867933,1708601449836,-559.26,0.00032876,2]
[314867934,1708601449845,-796.01,0.00032876,2]
[314867935,1708601449854,-500.0,0.00032876,2]
[314867936,1708601449864,-2047.21,0.00032876,2]
[314867937,1708601449873,-983.58,0.00032876,2]
[314867938,1708601449883,-504.44504256,0.00032876,2]
[314867939,1708601449892,-793.37,0.00032876,2]
[314867940,1708601449901,-1145.28,0.00032876,2]
[314867941,1708601449910,-3657.05,0.00032876,2]
[314867942,1708601449920,-500.0,0.00032876,2]
[314867943,1708601449930,-520.64,0.00032876,2]
[314867944,1708601449940,-1278.44,0.00032876,2]
[314867945,1708601449949,-500.0,0.00032876,2]
[314867946,1708601449959,-984.09,0.00032876,2]
[314867947,1708601449968,-610.61,0.00032876,2]
[314867948,1708601449979,-500.0,0.00032876,2]
[314867949,1708601449988,-1777.64,0.00032876,2]
[314867950,1708601449997,-647.82,0.00032876,2]
[314867951,1708601450007,-500.0,0.00032876,2]
[314867952,1708601450016,-163.5379681,0.00032876,2]
[314867953,1708601450026,-500.0,0.00032876,2]
[314867954,1708601450036,-500.0,0.00032876,2]
[314867955,1708601450046,-500.0,0.00032876,2]
[314867956,1708601450056,-500.0,0.00032876,2]
[314867957,1708601450066,-2273.65,0.00032876,2]
[314867958,1708601450077,-535.98,0.00032876,2]
[314867959,1708601450087,-500.0,0.00032876,2]
[314867960,1708601450097,-2234.91,0.00032876,2]
[314867961,1708601450107,-522.50317673,0.00032876,2]
[314867962,1708601450117,-500.0,0.00032876,2]
[314867963,1708601450127,-500.0,0.00032876,2]
[314867964,1708601450137,-500.0,0.00032876,2]
[314867965,1708601450147,-500.0,0.00032876,2]
[314867966,1708601450157,-1079.75,0.00032876,2]
[314867967,1708601450168,-1022.26,0.00032876,2]
[314867968,1708601450178,-1116.97,0.00032876,2]
[314867969,1708601450189,-500.0,0.00032876,2]
[314867970,1708601450199,-1007.67,0.00032876,2]
[314867971,1708601450210,-500.0,0.00032876,2]
[314867972,1708601450220,-500.0,0.00032876,2]
[314867973,1708601450231,-500.0,0.00032876,2]
[314867974,1708601450242,-1037.36,0.00032876,2]
[314867975,1708601450253,-2273.89,0.00032876,2]
[314867976,1708601450263,-752.53,0.00032876,2]
[314867977,1708601450274,-506.65,0.00032876,2]
[314867978,1708601450285,-500.0,0.00032876,2]
[314867979,1708601450296,-500.0,0.00032876,2]
[314867980,1708601450307,-1157.33,0.00032876,2]
[314867981,1708601450318,-1132.42,0.00032876,2]
[314867982,1708601450329,-1538.48,0.00032876,2]
[314867983,1708601450343,-897.52,0.00032876,2]
[314867984,1708601450354,-500.0,0.00032876,2]
[314867985,1708601450366,-500.0,0.00032876,2]
[314867986,1708601450377,-566.1,0.00032876,2]
[314867987,1708601450389,-1530.04,0.00032876,2]
[314867988,1708601450400,-566.1,0.00032876,2]
[314867989,1708601450411,-779.78,0.00032876,2]
[314867990,1708601450422,-5522.63,0.00032876,2]
[314867991,1708601450432,-507.8836511,0.00032876,2]
[314867992,1708601450442,-500.0,0.00032876,2]
[314867993,1708601450453,-500.0,0.00032876,2]
[314867994,1708601450465,-1052.49,0.00032876,2]
[314867995,1708601450476,-794.63,0.00032876,2]
[314867996,1708601450486,-1373.39,0.00032876,2]
[314867997,1708601450497,-739.2,0.00032876,2]
[314867998,1708601450508,-500.0,0.00032876,2]
[314867999,1708601450518,-520.01,0.00032876,2]
[314868000,1708601450529,-866.04,0.00032876,2]
[314868001,1708601450539,-1088.04,0.00032876,2]
[314868002,1708601450552,-1912.6,0.00032876,2]
[314868003,1708601450564,-6038.02,0.00032876,2]
[314868004,1708601450574,-781.66,0.00032876,2]
[314868005,1708601450585,-500.0,0.00032876,2]
[314868006,1708601450602,-500.0,0.00032876,2]
[314868007,1708601450613,-500.0,0.00032876,2]
[314868008,1708601450623,-1235.64,0.00032876,2]
[314868009,1708601450634,-500.0,0.00032876,2]
[314868010,1708601450645,-500.0,0.00032876,2]
[314868011,1708601450655,-1695.96,0.00032876,2]
[314868012,1708601450665,-14605.78,0.00032876,2]
[314868013,1708601450674,-500.0,0.00032876,2]
[314868014,1708601450684,-1030.41,0.00032876,2]
[314868015,1708601450693,-500.0,0.00032876,2]
[314868016,1708601450703,-3802.41,0.00032876,2]
[314868017,1708601450712,-500.0,0.00032876,2]
[314868018,1708601450721,-500.0,0.00032876,2]
[314868019,1708601450731,-500.0,0.00032876,2]
[314868020,1708601450741,-2713.89,0.00032876,2]
[314868021,1708601450752,-2204.78,0.00032876,2]
[314868022,1708601450762,-500.0,0.00032876,2]
[314868023,1708601450772,-1340.19,0.00032876,2]
[314868024,1708601450782,-835.04,0.00032876,2]
[314868025,1708601450792,-2764.82,0.00032876,2]
[314868026,1708601450802,-812.86,0.00032876,2]
[314868027,1708601450812,-2944.06,0.00032876,2]
[314868028,1708601450822,-672.93,0.00032876,2]
[314868029,1708601450832,-690.41,0.00032876,2]
[314868030,1708601450846,-500.0,0.00032876,2]
[314868031,1708601450857,-500.0,0.00032876,2]
[314868032,1708601450867,-500.0,0.00032876,2]
[314868033,1708601450877,-907.59,0.00032876,2]
[314868034,1708601450888,-500.0,0.00032876,2]
[314868035,1708601450898,-597.08,0.00032876,2]
[314868036,1708601450907,-500.0,0.00032876,2]
[314868037,1708601450918,-500.0,0.00032876,2]
[314868038,1708601450928,-500.0,0.00032876,2]
[314868039,1708601450938,-881.19,0.00032876,2]
[314868040,1708601450948,-1358.34,0.00032876,2]
[314868041,1708601450958,-1213.02,0.00032876,2]
[314868042,1708601451045,-500.0,0.00032876,2]
[314868043,1708601451055,-500.0,0.00032876,2]
[314868044,1708601451066,-1643.12,0.00032876,2]
[314868045,1708601451075,-500.0,0.00032876,2]
[314868046,1708601451085,-1001.97,0.00032876,2]
[314868047,1708601451097,-644.81,0.00032876,2]
[314868048,1708601451107,-500.0,0.00032876,2]
[314868049,1708601451117,-500.0,0.00032876,2]
[314868050,1708601451126,-551.44,0.00032876,2]
[314868051,1708601451135,-598.59,0.00032876,2]
[314868052,1708601451145,-2695.51,0.00032876,2]
[314868053,1708601451154,-3811.87,0.00032876,2]
[314868054,1708601451164,-564.38,0.00032876,2]
[314868055,1708601451173,-642.04,0.00032876,2]
[314868056,1708601451183,-4872.42,0.00032876,2]
[314868057,1708601451192,-6234.55,0.00032876,2]
[314868058,1708601451202,-500.0,0.00032876,2]
[314868059,1708601451211,-990.05,0.00032876,2]
[314868060,1708601451221,-560.02,0.00032876,2]
[314868061,1708601451231,-501.8,0.00032876,2]
[314868062,1708601451240,-500.0,0.00032876,2]
[314868063,1708601451249,-657.15,0.00032876,2]
[314868064,1708601451259,-500.0,0.00032876,2]
[314868065,1708601451269,-354.3040363,0.00032876,2]
[314868066,1708601451279,-500.0,0.00032876,2]
[314868067,1708601451289,-1362.01,0.00032876,2]
[314868068,1708601451298,-1163.67,0.00032876,2]
[314868069,1708601451307,-500.0,0.00032876,2]
[314868070,1708601451317,-1182.02,0.00032876,2]
[314868071,1708601451327,-500.0,0.00032876,2]
[314868072,1708601451340,-719.82,0.00032876,2]
[314868073,1708601451349,-500.0,0.00032876,2]
[314868074,1708601451359,-1000.0,0.00032876,7]
[314868075,1708601451369,-500.0,0.00032876,2]
[314868076,1708601451379,-500.0,0.00032876,2]
[314868077,1708601451389,-1634.68,0.00032876,2]
[314868078,1708601451398,-501.81,0.00032876,2]
[314868079,1708601451408,-514.8186515,0.00032876,2]
[314868080,1708601451417,-649.12,0.00032876,2]
[314868081,1708601451427,-1082.28,0.00032876,2]
[314868082,1708601451436,-2015.81,0.00032876,2]
[314868083,1708601451446,-7767.49,0.00032876,2]
[314868084,1708601451455,-5589.92,0.00032876,2]
[314868085,1708601451465,-500.0,0.00032876,2]
[314868086,1708601451475,-500.0,0.00032876,2]
[314868087,1708601451484,-500.0,0.00032876,2]
[314868088,1708601451494,-500.0,0.00032876,2]
[314868089,1708601451503,-500.0,0.00032876,2]
[314868090,1708601451512,-1380.87,0.00032876,2]
[314868091,1708601451522,-500.0,0.00032876,2]
[314868092,1708601451532,-1093.61,0.00032876,2]
[314868093,1708601451543,-500.0,0.00032876,2]
[314868094,1708601451557,-500.0,0.00032876,2]
[314868095,1708601451567,-500.0,0.00032876,2]
[314868096,1708601451576,-1213.07,0.00032876,2]
[314868097,1708601451588,-1945.19,0.00032876,2]
[314868098,1708601451597,-575.83,0.00032876,2]
[314868099,1708601451607,-1000.0,0.00032876,7]
[314868100,1708601451617,-500.0,0.00032876,2]
[314868101,1708601451626,-217.53740234,0.00032876,2]
[314868102,1708601451636,-955.49,0.00032876,2]
[314868103,1708601451646,-1119.32,0.00032876,2]
[314868104,1708601451656,-776.67,0.00032876,2]
[314868105,1708601451665,-500.0,0.00032876,2]
[314868106,1708601451674,-166.16,0.00032877,2]
[314868107,1708601451684,-250.0,0.00032877,2]
[314868108,1708601451693,-312.27905999,0.000329,2]
[314868109,1708601451703,-170.66,0.00032904,2]
[314868110,1708601451712,-157.45,0.00032913,2]
[314868111,1708601451721,-150.0,0.00032972,2]
[314868112,1708601451731,-177.69,0.00032972,2]
[314868113,1708601451742,-197.21398976,0.00033,5]
[314868114,1708601451752,-157.45,0.00033039,2]
[314868115,1708601451762,-719.41645413,0.0003305,2]
[314868116,1708601451771,-170.66,0.00033068,2]
[314868117,1708601451781,-56287.61311648,0.00033148,2]
[314868118,1708601451790,-566.1,0.00033149,4]
[314868119,1708601451800,-566.1,0.00033149,4]
[314868120,1708601451809,-566.1,0.00033149,4]
[314868121,1708601451819,-500.0,0.0003315,4]
[314868122,1708601451829,-586.34,0.0003315,4]
[314868123,1708601451838,-500.0,0.0003315,4]
[314868124,1708601451847,-500.0,0.0003315,4]
[314868125,1708601451857,-500.0,0.0003315,4]
[314868126,1708601451867,-500.0,0.0003315,4]
[314868127,1708601451876,-500.0,0.0003315,4]
[314868128,1708601451886,-500.0,0.0003315,4]
[314868129,1708601451895,-500.0,0.0003315,4]
[314868130,1708601451905,-500.0,0.0003315,4]
[314868131,1708601451915,-500.0,0.0003315,4]
[314868132,1708601451925,-500.0,0.0003315,4]
[314868133,1708601451935,-500.0,0.0003315,4]
[314868134,1708601451944,-500.0,0.0003315,4]
[314868135,1708601451954,-500.0,0.0003315,4]
[314868136,1708601451964,-500.0,0.0003315,4]
[314868137,1708601451974,-500.0,0.0003315,4]
[314868138,1708601451984,-500.0,0.0003315,4]
[314868139,1708601451993,-500.0,0.0003315,4]
[314868140,1708601452003,-549.80432489,0.0003315,4]
[314868141,1708601452013,-500.0,0.0003315,4]
[314868142,1708601452022,-500.0,0.0003315,4]
[314868143,1708601452032,-500.0,0.0003315,4]
[314868144,1708601452041,-500.0,0.0003315,4]
[314868145,1708601452050,-500.0,0.0003315,4]
[314868146,1708601452059,-500.0,0.0003315,4]
[314868147,1708601452068,-678.22,0.0003315,4]
[314868148,1708601452077,-574.40704283,0.0003315,4]
[314868149,1708601452088,-500.0,0.0003315,4]
[314868150,1708601452097,-180.66494934,0.0003315,4]
[314868151,1708601452106,-500.0,0.0003315,4]
[314868152,1708601452115,-500.0,0.0003315,4]
[314868153,1708601452124,-500.0,0.0003315,4]
[314868154,1708601452133,-500.0,0.0003315,4]
[314868155,1708601452142,-500.0,0.0003315,4]
[314868156,1708601452151,-500.0,0.0003315,4]
[314868157,1708601452160,-537.15618729,0.0003315,4]
[314868158,1708601452170,-500.0,0.0003315,4]
[314868159,1708601452179,-500.0,0.0003315,4]
[314868160,1708601452188,-500.0,0.0003315,4]
[314868161,1708601452198,-500.0,0.0003315,4]
[314868162,1708601452208,-500.0,0.0003315,4]
[314868163,1708601452218,-500.0,0.0003315,4]
[314868164,1708601452228,-500.0,0.0003315,4]
[314868165,1708601452239,-540.26,0.0003315,4]
[314868166,1708601452249,-500.0,0.0003315,4]
[314868167,1708601452260,-500.0,0.0003315,4]
[314868168,1708601452270,-547.25,0.0003315,4]
[314868169,1708601452281,-500.0,0.0003315,4]
[314868170,1708601452291,-500.0,0.0003315,4]
[314868171,1708601452301,-500.0,0.0003315,4]
[314868172,1708601452312,-544.14025107,0.0003315,4]
[314868173,1708601452321,-500.0,0.0003315,4]
[314868174,1708601452330,-625.27,0.0003315,4]
[314868175,1708601452343,-626.08,0.0003315,4]
[314868176,1708601452353,-500.0,0.0003315,4]
[314868177,1708601452362,-551.61,0.0003315,4]
[314868178,1708601452372,-500.0,0.0003315,4]
[314868179,1708601452382,-595.02,0.0003315,4]
[314868180,1708601452392,-500.0,0.0003315,4]
[314868181,1708601452401,-500.0,0.0003315,4]
[314868182,1708601452410,-500.0,0.0003315,4]
[314868183,1708601452420,-500.0,0.0003315,4]
[314868184,1708601452429,-500.0,0.0003315,4]
[314868185,1708601452439,-500.0,0.0003315,4]
[314868186,1708601452449,-1094.32,0.0003315,4]
[314868187,1708601452459,-500.0,0.0003315,4]
[314868188,1708601452470,-500.0,0.0003315,4]
[314868189,1708601452479,-500.0,0.0003315,4]
[314868190,1708601452490,-525.13138007,0.0003315,4]
[314868191,1708601452500,-500.0,0.0003315,4]
[314868192,1708601452511,-500.0,0.0003315,4]
[314868193,1708601452522,-500.0,0.0003315,4]
[314868194,1708601452533,-680.34,0.0003315,4]
[314868195,1708601452545,-646.405095,0.0003315,4]
[314868196,1708601452557,-500.0,0.0003315,4]
[314868197,1708601452568,-500.0,0.0003315,4]
[314868198,1708601452578,-500.0,0.0003315,4]
[314868199,1708601452593,-500.0,0.0003315,4]
[314868200,1708601452602,-500.0,0.0003315,4]
[314868201,1708601452612,-500.0,0.0003315,4]
[314868202,1708601452622,-500.0,0.0003315,4]
[314868203,1708601452634,-500.0,0.0003315,4]
[314868204,1708601452644,-500.0,0.0003315,4]
[314868205,1708601452654,-500.0,0.0003315,4]
[314868206,1708601452664,-500.0,0.0003315,4]
[314868207,1708601452674,-366.79290899,0.0003315,4]
[314868208,1708601452683,-500.0,0.0003315,4]
[314868209,1708601452693,-500.0,0.0003315,4]
[314868210,1708601452703,-500.0,0.0003315,4]
[314868211,1708601452712,-500.0,0.0003315,4]
[314868212,1708601452723,-500.0,0.0003315,4]
[314868213,1708601452733,-500.0,0.0003315,4]
[314868214,1708601452744,-407.74375604,0.0003315,4]
[314868215,1708601452754,-500.0,0.0003315,4]
[314868216,1708601452764,-500.0,0.0003315,4]
[314868217,1708601452773,-500.0,0.0003315,4]
[314868218,1708601452783,-500.0,0.0003315,4]
[314868219,1708601452793,-500.0,0.0003315,4]
[314868220,1708601452803,-500.0,0.0003315,4]
[314868221,1708601452813,-500.0,0.0003315,4]
[314868222,1708601452823,-1205.22,0.0003315,4]
[314868223,1708601452833,-500.0,0.0003315,4]
[314868224,1708601452846,-500.0,0.0003315,4]
[314868225,1708601452856,-500.0,0.0003315,4]
[314868226,1708601452867,-504.36544174,0.0003315,4]
[314868227,1708601452877,-500.0,0.0003315,4]
[314868228,1708601452887,-500.0,0.0003315,4]
[314868229,1708601452896,-500.0,0.0003315,4]
[314868230,1708601452905,-500.0,0.0003315,4]
[314868231,1708601452914,-500.0,0.0003315,4]
[314868232,1708601452924,-441.93155954,0.0003315,4]
[314868233,1708601452933,-500.0,0.0003315,4]
[314868234,1708601452943,-500.0,0.0003315,4]
[314868235,1708601452952,-500.0,0.0003315,4]
[314868236,1708601452961,-531.25418839,0.0003315,4]
[314868237,1708601452970,-500.0,0.0003315,4]
[314868238,1708601452980,-504.37033962,0.0003315,4]
[314868239,1708601452990,-630.43,0.0003315,4]
[314868240,1708601452999,-500.0,0.0003315,4]